[Event "SS Manhem Chess Week GM and IM tournaments 2018"]
[Site "Molnlycke kulturhus, Biblioteksgatan 2, Molnlycke, Sweden"]
[Date "2018.08.11"]
[Round "1.1"]
[White "Schneider, Stefan"]
[Black "Brynell, Stellan"]
[Result "0-1"]
[TimeControl "90 minutes for 40 moves + 30 minutes for the rest of the game + 30 seconds per move from move one."]
[WhiteTitle "IM"]
[BlackTitle "GM"]
[WhiteFideId "1703013"]
[BlackFideId "1700219"]
[WhiteElo "2399"]
[BlackElo "2391"]

1. d4 {[%clk 01:30:53]} {[%emt 00:00:06]} e6 {[%clk 01:30:50]} {[%emt
00:00:11]} 2. c4 {[%clk 01:30:19]} {[%emt 00:01:04]} Nf6 {[%clk 01:31:07]}
{[%emt 00:00:12]} 3. Nf3 {[%clk 01:30:44]} {[%emt 00:00:05]} c5 {[%clk
01:31:07]} {[%emt 00:00:30]} 4. d5 {[%clk 01:29:15]} {[%emt 00:01:59]} d6
{[%clk 01:31:31]} {[%emt 00:00:06]} 5. Nc3 {[%clk 01:29:34]} {[%emt 00:00:12]}
exd5 {[%clk 01:31:55]} {[%emt 00:00:06]} 6. cxd5 {[%clk 01:29:57]} {[%emt
00:00:06]} g6 {[%clk 01:32:21]} {[%emt 00:00:04]} 7. Bf4 {[%clk 01:26:49]}
{[%emt 00:03:38]} Bg7 {[%clk 01:32:31]} {[%emt 00:00:20]} 8. Qa4+ {[%clk
01:19:35]} {[%emt 00:07:44]} Bd7 {[%clk 01:31:58]} {[%emt 00:01:03]} 9. Qb3
{[%clk 01:20:03]} {[%emt 00:00:03]} Qc7 {[%clk 01:32:19]} {[%emt 00:00:08]} 10.
h3 {[%clk 01:17:22]} {[%emt 00:03:12]} O-O {[%clk 01:28:57]} {[%emt 00:03:52]}
11. e3 {[%clk 01:17:26]} {[%emt 00:00:26]} Na6 {[%clk 01:18:53]} {[%emt
00:10:34]} 12. Rd1 {[%clk 00:50:35]} {[%emt 00:27:21]} Rab8 {[%clk 01:00:15]}
{[%emt 00:19:08]} 13. Bb5 {[%clk 00:41:53]} {[%emt 00:09:12]} Bf5 {[%clk
00:45:37]} {[%emt 00:15:08]} 14. O-O {[%clk 00:27:45]} {[%emt 00:14:38]} Nb4
{[%clk 00:36:14]} {[%emt 00:09:53]} 15. Ne1 {[%clk 00:18:40]} {[%emt 00:09:36]}
Qe7 {[%clk 00:33:15]} {[%emt 00:03:29]} 16. a3 {[%clk 00:15:09]} {[%emt
00:04:01]} Na6 {[%clk 00:22:41]} {[%emt 00:11:04]} 17. Qa4 {[%clk 00:15:16]}
{[%emt 00:00:23]} Nc7 {[%clk 00:18:59]} {[%emt 00:04:12]} 18. Be2 {[%clk
00:05:36]} {[%emt 00:10:10]} a6 {[%clk 00:18:56]} {[%emt 00:00:33]} 19. Nf3
{[%clk 00:03:43]} {[%emt 00:02:23]} b5 {[%clk 00:16:28]} {[%emt 00:02:59]} 20.
Qa5 {[%clk 00:04:03]} {[%emt 00:00:11]} b4 {[%clk 00:16:02]} {[%emt 00:00:56]}
21. axb4 {[%clk 00:03:08]} {[%emt 00:01:25]} Rxb4 {[%clk 00:16:21]} {[%emt
00:00:10]} 22. Rd2 {[%clk 00:01:54]} {[%emt 00:01:45]} Rfb8 {[%clk 00:15:45]}
{[%emt 00:01:05]} 23. g4 {[%clk 00:01:25]} {[%emt 00:00:59]} Bc8 {[%clk
00:13:52]} {[%emt 00:02:23]} 24. Qa2 {[%clk 00:01:40]} {[%emt 00:00:16]} h5
{[%clk 00:10:30]} {[%emt 00:03:52]} 25. Ne5 {[%clk 00:01:13]} {[%emt 00:00:58]}
dxe5 {[%clk 00:07:29]} {[%emt 00:03:31]} 26. d6 {[%clk 00:01:42]} {[%emt
00:00:01]} Qd8 {[%clk 00:05:59]} {[%emt 00:01:59]} 27. dxc7 {[%clk 00:01:48]}
{[%emt 00:00:24]} Qxc7 {[%clk 00:05:39]} {[%emt 00:00:50]} 28. Bg3 {[%clk
00:01:01]} {[%emt 00:01:18]} hxg4 {[%clk 00:05:04]} {[%emt 00:01:04]} 29. hxg4
{[%clk 00:01:26]} {[%emt 00:00:05]} Bxg4 {[%clk 00:04:31]} {[%emt 00:01:03]} 30.
Bc4 {[%clk 00:00:45]} {[%emt 00:01:11]} Bf3 {[%clk 00:04:11]} {[%emt 00:00:51]}
31. Rb1 {[%clk 00:00:39]} {[%emt 00:00:36]} Qc8 {[%clk 00:03:10]} {[%emt
00:01:31]} 32. Bxf7+ {[%clk 00:01:03]} {[%emt 00:00:06]} Kh7 {[%clk 00:03:34]}
{[%emt 00:00:05]} 33. Be6 {[%clk 00:01:28]} {[%emt 00:00:06]} Qc6 {[%clk
00:03:31]} {[%emt 00:00:33]} 34. Bc4 {[%clk 00:01:11]} {[%emt 00:00:46]} Ne4
{[%clk 00:02:28]} {[%emt 00:01:34]} 35. Nxe4 {[%clk 00:01:18]} {[%emt
00:00:23]} Qxe4 {[%clk 00:02:37]} {[%emt 00:00:20]} 36. Bd3 {[%clk 00:01:33]}
{[%emt 00:00:15]} Qh4 {[%clk 00:02:13]} {[%emt 00:00:54]} 37. Bxg6+ {[%clk
00:00:42]} {[%emt 00:01:22]} Kh6 {[%clk 00:02:03]} {[%emt 00:00:40]} 38. Bxh4
{[%clk 00:00:41]} {[%emt 00:00:31]} Rxh4 {[%clk 00:02:27]} {[%emt 00:00:06]} 39.
Qxa6 {[%clk 00:00:36]} {[%emt 00:00:35]} Rh1# {[%clk 00:02:50]} {[%emt
00:00:06]} 0-1

[Event "SS Manhem Chess Week GM and IM tournaments 2018"]
[Site "Molnlycke kulturhus, Biblioteksgatan 2, Molnlycke, Sweden"]
[Date "2018.08.11"]
[Round "1.2"]
[White "Johansson, Linus"]
[Black "Rozentalis, Eduardas"]
[Result "1/2-1/2"]
[TimeControl "90 minutes for 40 moves + 30 minutes for the rest of the game + 30 seconds per move from move one."]
[WhiteTitle "IM"]
[BlackTitle "GM"]
[WhiteFideId "1711113"]
[BlackFideId "12800023"]
[WhiteElo "2457"]
[BlackElo "2503"]

1. d4 {[%clk 01:30:56]} {[%emt 00:00:02]} Nf6 {[%clk 01:30:53]} {[%emt
00:00:08]} 2. c4 {[%clk 01:31:23]} {[%emt 00:00:03]} e6 {[%clk 01:31:19]}
{[%emt 00:00:04]} 3. Nc3 {[%clk 01:31:50]} {[%emt 00:00:03]} Bb4 {[%clk
01:31:44]} {[%emt 00:00:05]} 4. Bg5 {[%clk 01:32:17]} {[%emt 00:00:03]} h6
{[%clk 01:30:19]} {[%emt 00:01:55]} 5. Bh4 {[%clk 01:32:36]} {[%emt 00:00:12]}
c5 {[%clk 01:30:34]} {[%emt 00:00:14]} 6. d5 {[%clk 01:33:01]} {[%emt
00:00:04]} Bxc3+ {[%clk 01:30:29]} {[%emt 00:00:35]} 7. bxc3 {[%clk 01:33:27]}
{[%emt 00:00:05]} d6 {[%clk 01:30:53]} {[%emt 00:00:06]} 8. e3 {[%clk
01:33:52]} {[%emt 00:00:05]} e5 {[%clk 01:30:42]} {[%emt 00:00:41]} 9. Qc2
{[%clk 01:34:08]} {[%emt 00:00:14]} Qe7 {[%clk 01:28:29]} {[%emt 00:02:42]} 10.
Nf3 {[%clk 01:34:31]} {[%emt 00:00:06]} Nbd7 {[%clk 01:27:34]} {[%emt
00:01:25]} 11. Nd2 {[%clk 01:34:35]} {[%emt 00:00:26]} e4 {[%clk 01:21:07]}
{[%emt 00:06:57]} 12. Be2 {[%clk 01:35:00]} {[%emt 00:00:05]} g5 {[%clk
01:16:01]} {[%emt 00:05:36]} 13. Bg3 {[%clk 01:35:26]} {[%emt 00:00:04]} Nf8
{[%clk 01:16:09]} {[%emt 00:00:23]} 14. O-O {[%clk 01:35:51]} {[%emt 00:00:06]}
Bf5 {[%clk 01:06:20]} {[%emt 00:10:19]} 15. f3 {[%clk 01:23:45]} {[%emt
00:12:36]} exf3 {[%clk 01:03:06]} {[%emt 00:03:44]} 16. Qxf5 {[%clk 01:24:09]}
{[%emt 00:00:06]} fxe2 {[%clk 01:03:25]} {[%emt 00:00:11]} 17. Rf3 {[%clk
01:22:51]} {[%emt 00:01:48]} N8d7 {[%clk 00:58:37]} {[%emt 00:05:18]} 18. Re1
{[%clk 01:22:53]} {[%emt 00:00:28]} O-O-O {[%clk 00:49:34]} {[%emt 00:09:33]}
19. Rxe2 {[%clk 01:21:51]} {[%emt 00:01:32]} Nh5 {[%clk 00:29:23]} {[%emt
00:20:40]} 20. Qxf7 {[%clk 01:07:20]} {[%emt 00:15:01]} Qxf7 {[%clk 00:29:34]}
{[%emt 00:00:19]} 21. Rxf7 {[%clk 01:07:45]} {[%emt 00:00:04]} Nxg3 {[%clk
00:28:46]} {[%emt 00:01:19]} 22. hxg3 {[%clk 01:08:08]} {[%emt 00:00:05]} Ne5
{[%clk 00:27:12]} {[%emt 00:02:06]} 23. Rg7 {[%clk 01:08:00]} {[%emt 00:00:37]}
Rd7 {[%clk 00:25:24]} {[%emt 00:02:19]} 1/2-1/2

[Event "SS Manhem Chess Week GM and IM tournaments 2018"]
[Site "Molnlycke kulturhus, Biblioteksgatan 2, Molnlycke, Sweden"]
[Date "2018.08.11"]
[Round "1.3"]
[White "Sammalvuo, Tapani"]
[Black "Lindberg, Bengt"]
[Result "1/2-1/2"]
[TimeControl "90 minutes for 40 moves + 30 minutes for the rest of the game + 30 seconds per move from move one."]
[WhiteTitle "IM"]
[BlackTitle "IM"]
[WhiteFideId "501115"]
[BlackFideId "1700359"]
[WhiteElo "2411"]
[BlackElo "2416"]

1. d4 {[%clk 01:30:58]} Nf6 {[%clk 01:30:51]} {[%emt 00:00:09]} 2. c4 {[%clk
01:31:26]} {[%emt 00:00:02]} e6 {[%clk 01:31:11]} {[%emt 00:00:10]} 3. Nf3
{[%clk 01:31:54]} {[%emt 00:00:03]} b6 {[%clk 01:31:29]} {[%emt 00:00:12]} 4.
g3 {[%clk 01:32:18]} {[%emt 00:00:06]} Ba6 {[%clk 01:31:48]} {[%emt 00:00:11]}
5. Qc2 {[%clk 01:32:46]} {[%emt 00:00:03]} Bb4+ {[%clk 01:31:51]} {[%emt
00:00:27]} 6. Bd2 {[%clk 01:32:53]} {[%emt 00:00:22]} Be7 {[%clk 01:32:07]}
{[%emt 00:00:13]} 7. e4 {[%clk 01:33:11]} {[%emt 00:00:13]} d5 {[%clk
01:32:22]} {[%emt 00:00:15]} 8. cxd5 {[%clk 01:33:30]} {[%emt 00:00:11]} Bxf1
{[%clk 01:32:41]} {[%emt 00:00:10]} 9. Kxf1 {[%clk 01:33:57]} {[%emt 00:00:03]}
exd5 {[%clk 01:33:00]} {[%emt 00:00:11]} 10. e5 {[%clk 01:34:23]} {[%emt
00:00:05]} Ne4 {[%clk 01:33:12]} {[%emt 00:00:16]} 11. Nc3 {[%clk 01:34:49]}
{[%emt 00:00:05]} Nxd2+ {[%clk 01:33:21]} {[%emt 00:00:21]} 12. Nxd2 {[%clk
01:20:17]} {[%emt 00:15:02]} Qd7 {[%clk 01:30:11]} {[%emt 00:03:40]} 13. Qb3
{[%clk 01:19:50]} {[%emt 00:00:58]} Nc6 {[%clk 01:08:50]} {[%emt 00:21:50]} 14.
Nf3 {[%clk 01:18:56]} {[%emt 00:01:24]} Rd8 {[%clk 01:04:51]} {[%emt 00:04:28]}
15. Kg2 {[%clk 01:17:05]} {[%emt 00:02:22]} O-O {[%clk 01:03:45]} {[%emt
00:01:35]} 16. Rac1 {[%clk 01:14:30]} {[%emt 00:03:06]} Na5 {[%clk 00:59:44]}
{[%emt 00:04:30]} 17. Qc2 {[%clk 01:02:12]} {[%emt 00:12:47]} c5 {[%clk
00:58:25]} {[%emt 00:01:49]} 18. Rcd1 {[%clk 01:02:14]} {[%emt 00:00:29]} Qb7
{[%clk 00:50:46]} {[%emt 00:08:09]} 19. h4 {[%clk 00:52:22]} {[%emt 00:10:23]}
Nc6 {[%clk 00:47:11]} {[%emt 00:04:04]} 20. a3 {[%clk 00:40:42]} {[%emt
00:12:11]} Nxd4 {[%clk 00:42:19]} {[%emt 00:05:22]} 21. Nxd4 {[%clk 00:41:10]}
{[%emt 00:00:03]} cxd4 {[%clk 00:42:42]} {[%emt 00:00:07]} 22. Ne2 {[%clk
00:35:30]} {[%emt 00:06:09]} Rfe8 {[%clk 00:40:51]} {[%emt 00:02:20]} 23. Rhe1
{[%clk 00:35:16]} {[%emt 00:00:45]} Bc5 {[%clk 00:21:18]} {[%emt 00:20:03]} 24.
b4 {[%clk 00:33:19]} {[%emt 00:02:28]} Bf8 {[%clk 00:20:10]} {[%emt 00:01:37]}
25. Nxd4 {[%clk 00:33:47]} {[%emt 00:00:03]} Rc8 {[%clk 00:18:40]} {[%emt
00:01:59]} 26. Qd3 {[%clk 00:31:53]} {[%emt 00:02:24]} Rc4 {[%clk 00:17:24]}
{[%emt 00:01:46]} 27. Nf5 {[%clk 00:16:56]} {[%emt 00:15:28]} Re4 {[%clk
00:08:11]} {[%emt 00:09:42]} 28. Rxe4 {[%clk 00:14:30]} {[%emt 00:02:58]} dxe4
{[%clk 00:08:39]} {[%emt 00:00:02]} 29. Qb5 {[%clk 00:09:46]} {[%emt 00:05:14]}
e3+ {[%clk 00:07:09]} {[%emt 00:02:00]} 30. f3 {[%clk 00:09:44]} {[%emt
00:00:32]} Qb8 {[%clk 00:05:42]} {[%emt 00:01:56]} 31. Rd5 {[%clk 00:09:20]}
{[%emt 00:00:56]} a6 {[%clk 00:04:31]} {[%emt 00:01:41]} 32. Qd3 {[%clk
00:08:53]} {[%emt 00:00:57]} Rxe5 {[%clk 00:04:49]} {[%emt 00:00:11]} 33. Nxe3
{[%clk 00:06:36]} {[%emt 00:02:48]} Re8 {[%clk 00:04:46]} {[%emt 00:00:32]} 34.
Ng4 {[%clk 00:06:12]} Qc8 {[%clk 00:03:25]} {[%emt 00:02:45]} 35. Rh5 {[%clk
00:03:00]} h6 {[%clk 00:03:41]} {[%emt 00:03:56]} 36. Rd5 {[%clk 00:02:02]} Qe6
{[%clk 00:03:39]} {[%emt 00:01:59]} 37. Ne5 {[%clk 00:02:00]} {[%emt 00:00:33]}
b5 {[%clk 00:02:49]} {[%emt 00:01:20]} 38. h5 {[%clk 00:02:09]} {[%emt
00:00:21]} Be7 {[%clk 00:01:53]} {[%emt 00:01:26]} 39. Ng4 {[%clk 00:02:32]}
{[%emt 00:00:07]} Rc8 {[%clk 00:01:29]} {[%emt 00:00:53]} 40. Re5 {[%clk
00:01:30]} {[%emt 00:01:33]} Qd6 {[%clk 00:01:47]} {[%emt 00:00:11]} 41. Rd5
{[%clk 00:26:33]} {[%emt 00:05:27]} Qc6 {[%clk 00:29:35]} {[%emt 00:02:39]} 42.
Rd7 {[%clk 00:23:50]} {[%emt 00:03:16]} Qe6 {[%clk 00:27:51]} {[%emt 00:02:14]}
43. Ne3 {[%clk 00:20:40]} {[%emt 00:03:40]} Bf8 {[%clk 00:22:35]} {[%emt
00:05:44]} 44. Nd5 {[%clk 00:15:10]} {[%emt 00:06:01]} Qe5 {[%clk 00:22:21]}
{[%emt 00:00:43]} 45. Nf4 {[%clk 00:13:08]} {[%emt 00:02:34]} Rc3 {[%clk
00:14:26]} {[%emt 00:08:26]} 46. Qe4 {[%clk 00:10:03]} {[%emt 00:03:35]} Qxe4
{[%clk 00:10:28]} {[%emt 00:04:28]} 47. fxe4 {[%clk 00:10:31]} {[%emt
00:00:02]} Rxa3 {[%clk 00:10:52]} {[%emt 00:00:07]} 48. Rd8 {[%clk 00:07:49]}
{[%emt 00:03:12]} a5 {[%clk 00:08:16]} {[%emt 00:03:07]} 49. bxa5 {[%clk
00:03:44]} {[%emt 00:04:35]} Rxa5 {[%clk 00:08:01]} {[%emt 00:00:43]} 50. e5
{[%clk 00:04:02]} {[%emt 00:00:14]} Ra7 {[%clk 00:04:56]} {[%emt 00:03:35]} 51.
Rb8 {[%clk 00:03:52]} {[%emt 00:00:40]} b4 {[%clk 00:03:41]} {[%emt 00:01:45]}
52. Kf3 {[%clk 00:03:19]} {[%emt 00:01:03]} b3 {[%clk 00:02:27]} {[%emt
00:01:44]} 53. Nd5 {[%clk 00:02:46]} {[%emt 00:01:02]} b2 {[%clk 00:01:19]}
{[%emt 00:01:38]} 54. Rxb2 {[%clk 00:03:09]} {[%emt 00:00:07]} Be7 {[%clk
00:01:41]} {[%emt 00:00:08]} 55. Rb8+ {[%clk 00:03:07]} {[%emt 00:00:32]} Kh7
{[%clk 00:02:09]} {[%emt 00:00:02]} 56. Ne3 {[%clk 00:01:54]} {[%emt 00:01:43]}
Bg5 {[%clk 00:01:53]} {[%emt 00:00:45]} 57. Nf5 {[%clk 00:02:19]} {[%emt
00:00:06]} g6 {[%clk 00:01:27]} {[%emt 00:00:56]} 58. hxg6+ {[%clk 00:02:42]}
{[%emt 00:00:06]} Kxg6 {[%clk 00:01:48]} {[%emt 00:00:09]} 59. g4 {[%clk
00:02:55]} {[%emt 00:00:18]} Ra3+ {[%clk 00:01:46]} {[%emt 00:00:32]} 60. Kf2
{[%clk 00:02:54]} {[%emt 00:00:31]} Ra2+ {[%clk 00:01:54]} {[%emt 00:00:23]} 61.
Kf3 {[%clk 00:03:15]} {[%emt 00:00:09]} Ra3+ {[%clk 00:02:17]} {[%emt
00:00:08]} 62. Ke2 {[%clk 00:02:42]} {[%emt 00:01:02]} Ra5 {[%clk 00:01:54]}
{[%emt 00:00:53]} 63. Re8 {[%clk 00:03:04]} {[%emt 00:00:08]} Bf4 {[%clk
00:01:44]} {[%emt 00:00:38]} 64. Rg8+ {[%clk 00:01:28]} {[%emt 00:02:07]} Kh7
{[%clk 00:02:07]} {[%emt 00:00:07]} 65. Rg7+ {[%clk 00:01:53]} {[%emt
00:00:06]} Kh8 {[%clk 00:02:33]} {[%emt 00:00:04]} 66. Rxf7 {[%clk 00:02:18]}
{[%emt 00:00:05]} Rxe5+ {[%clk 00:02:51]} {[%emt 00:00:11]} 67. Kf3 {[%clk
00:02:46]} {[%emt 00:00:03]} Bg5 {[%clk 00:03:12]} {[%emt 00:00:09]} 1/2-1/2

[Event "SS Manhem Chess Week GM and IM tournaments 2018"]
[Site "Molnlycke kulturhus, Biblioteksgatan 2, Molnlycke, Sweden"]
[Date "2018.08.11"]
[Round "1.5"]
[White "Christiansen, Johan-Sebastian"]
[Black "Vestby-Ellingsen, Mads"]
[Result "1-0"]
[TimeControl "90 minutes for 40 moves + 30 minutes for the rest of the game + 30 seconds per move from move one."]
[WhiteTitle "IM"]
[BlackTitle "FM"]
[WhiteFideId "1512668"]
[BlackFideId "1520857"]
[WhiteElo "2515"]
[BlackElo "2409"]

1. e4 {[%clk 01:30:57]} {[%emt 00:00:01]} e5 {[%clk 01:30:48]} {[%emt
00:00:11]} 2. Nf3 {[%clk 01:31:25]} {[%emt 00:00:04]} Nc6 {[%clk 01:31:09]}
{[%emt 00:00:09]} 3. Bb5 {[%clk 01:31:52]} {[%emt 00:00:03]} a6 {[%clk
01:31:28]} {[%emt 00:00:10]} 4. Ba4 {[%clk 01:32:21]} {[%emt 00:00:02]} Nf6
{[%clk 01:31:45]} {[%emt 00:00:12]} 5. O-O {[%clk 01:32:46]} {[%emt 00:00:05]}
Be7 {[%clk 01:32:05]} {[%emt 00:00:09]} 6. Re1 {[%clk 01:33:12]} {[%emt
00:00:05]} b5 {[%clk 01:32:25]} {[%emt 00:00:10]} 7. Bb3 {[%clk 01:33:39]}
{[%emt 00:00:03]} d6 {[%clk 01:32:46]} {[%emt 00:00:08]} 8. a4 {[%clk
01:34:07]} {[%emt 00:00:03]} b4 {[%clk 01:26:18]} {[%emt 00:06:57]} 9. a5
{[%clk 01:34:15]} {[%emt 00:00:22]} O-O {[%clk 01:24:08]} {[%emt 00:02:40]} 10.
h3 {[%clk 01:32:37]} {[%emt 00:02:08]} Be6 {[%clk 01:02:54]} {[%emt 00:21:44]}
11. c3 {[%clk 01:25:13]} {[%emt 00:07:54]} Bxb3 {[%clk 00:53:44]} {[%emt
00:09:40]} 12. Qxb3 {[%clk 01:25:32]} {[%emt 00:00:11]} Qd7 {[%clk 00:53:28]}
{[%emt 00:00:45]} 13. d4 {[%clk 01:12:50]} {[%emt 00:13:14]} bxc3 {[%clk
00:51:30]} {[%emt 00:02:27]} 14. dxe5 {[%clk 00:57:38]} {[%emt 00:15:43]} dxe5
{[%clk 00:45:51]} {[%emt 00:06:08]} 15. bxc3 {[%clk 00:57:46]} {[%emt
00:00:22]} Rfb8 {[%clk 00:39:51]} {[%emt 00:06:30]} 16. Qc2 {[%clk 00:54:29]}
{[%emt 00:03:48]} Bc5 {[%clk 00:35:44]} {[%emt 00:04:36]} 17. Nbd2 {[%clk
00:51:26]} {[%emt 00:03:33]} Qe6 {[%clk 00:31:08]} {[%emt 00:05:05]} 18. Ng5
{[%clk 00:48:27]} {[%emt 00:03:29]} Qe7 {[%clk 00:30:50]} {[%emt 00:00:48]} 19.
Qa4 {[%clk 00:45:47]} {[%emt 00:03:11]} Na7 {[%clk 00:27:26]} {[%emt 00:03:53]}
20. Qc4 {[%clk 00:37:34]} {[%emt 00:08:44]} Nb5 {[%clk 00:24:52]} {[%emt
00:03:04]} 21. Nf1 {[%clk 00:23:42]} {[%emt 00:14:22]} h6 {[%clk 00:16:01]}
{[%emt 00:09:21]} 22. Nf3 {[%clk 00:23:51]} {[%emt 00:00:22]} Ba7 {[%clk
00:15:43]} {[%emt 00:00:48]} 23. Bd2 {[%clk 00:22:09]} {[%emt 00:02:11]} Nd6
{[%clk 00:08:25]} {[%emt 00:07:49]} 24. Qa4 {[%clk 00:17:32]} {[%emt 00:05:07]}
Qe6 {[%clk 00:07:31]} {[%emt 00:01:24]} 25. Ng3 {[%clk 00:17:35]} {[%emt
00:00:27]} Rb5 {[%clk 00:06:33]} {[%emt 00:01:28]} 26. Qc2 {[%clk 00:11:59]}
{[%emt 00:06:07]} Nc4 {[%clk 00:05:26]} {[%emt 00:01:36]} 27. Nf5 {[%clk
00:12:00]} {[%emt 00:00:29]} Nxa5 {[%clk 00:03:06]} {[%emt 00:02:50]} 28. Rab1
{[%clk 00:03:20]} {[%emt 00:09:10]} Rab8 {[%clk 00:02:03]} {[%emt 00:01:32]} 29.
Rxb5 {[%clk 00:03:46]} {[%emt 00:00:05]} axb5 {[%clk 00:01:26]} {[%emt
00:01:06]} 30. g4 {[%clk 00:03:07]} {[%emt 00:01:10]} Nd7 {[%clk 00:01:05]}
{[%emt 00:00:51]} 31. g5 {[%clk 00:02:54]} {[%emt 00:00:43]} h5 {[%clk
00:00:53]} {[%emt 00:00:42]} 32. Bc1 {[%clk 00:01:18]} {[%emt 00:02:06]} g6
{[%clk 00:00:43]} {[%emt 00:00:39]} 33. N3h4 {[%clk 00:00:49]} {[%emt
00:01:00]} gxf5 {[%clk 00:00:32]} {[%emt 00:00:41]} 34. Nxf5 {[%clk 00:01:14]}
{[%emt 00:00:06]} Nc4 {[%clk 00:00:32]} {[%emt 00:00:31]} 35. Qe2 {[%clk
00:01:26]} {[%emt 00:00:17]} Qb6 {[%clk 00:00:31]} {[%emt 00:00:31]} 36. Be3
{[%clk 00:01:13]} {[%emt 00:00:43]} Nxe3 {[%clk 00:00:36]} {[%emt 00:00:25]} 37.
fxe3 {[%clk 00:01:41]} {[%emt 00:00:02]} Re8 {[%clk 00:00:36]} {[%emt
00:00:30]} 38. Rf1 {[%clk 00:01:34]} {[%emt 00:00:38]} Nf8 {[%clk 00:00:33]}
{[%emt 00:00:33]} 39. Qxh5 {[%clk 00:01:04]} {[%emt 00:01:00]} Qg6 {[%clk
00:00:31]} {[%emt 00:00:31]} 40. Nh6+ {[%clk 00:01:22]} {[%emt 00:00:11]} Kg7
{[%clk 00:00:31]} {[%emt 00:00:31]} 41. Rxf7+ {[%clk 00:01:41]} {[%emt
00:00:11]} 1-0